{"text_format":"1","workbook":"xlsx","n_sheets":6,"sheets":["المعطيات","data","data2","Feuil3","Feuil4","salim"],"not_rendered":{"charts":0,"images":0,"macros":1,"external_links":2,"defined_names":13,"comments":0,"pivot_tables":0},"unopened":[],"bounds":{"document_bytes":16777216,"sheet_cells":100000,"rows_first":2000,"rows_last":500,"rows_between":2000,"halvings":0,"cell_chars":16384,"cell_head_chars":4096},"cells_cut":0,"cells_raw":0,"read":"whole","date_system":"1900"}

{"sheet":"المعطيات","index":0,"n_rows":15,"n_cols":19,"rows_kept":15,"cut":false,"hidden":false,"merged":[[12,13,12,17],[13,13,13,17],[0,17,0,22],[13,7,13,10],[14,7,14,10],[14,1,14,4],[7,12,8,12],[9,12,10,12],[12,1,12,4],[13,1,13,4],[12,7,12,10],[2,6,2,8],[3,2,3,4],[0,0,0,9],[1,0,1,9],[3,0,3,1],[2,0,2,3],[5,6,5,8],[5,0,5,1],[5,2,5,4],[7,2,7,4],[4,0,4,1],[4,2,4,4],[4,6,4,8],[9,5,9,7],[9,8,9,9],[6,2,6,3],[7,6,7,8],[6,0,6,1],[7,0,7,1],[9,0,9,3],[8,0,8,1],[8,2,8,4],[8,6,8,8],[0,12,0,15],[10,13,10,15],[1,13,1,15],[3,13,3,15],[5,13,5,15],[8,13,8,15],[2,13,2,15],[4,13,4,15],[6,13,6,15],[7,13,7,15],[9,13,9,15],[1,12,2,12],[3,12,4,12],[5,12,6,12]]}
["الجمهورية الجزائرية الديمقراطية الشعبية",null,null,null,null,null,null,null,null,null,null,null,"أيام الامتحان",null,null,null,"الفترة ","مواد الإمتحان"]
["وزارة التربية الوطنية",null,null,null,null,null,null,null,null,null,null,1,"اليوم الأول","2019-06-16",null,null,"الصباحية ","اللغة العربية"]
["الديوان الوطني للامتحانات والمسابقات",null,null,null,null,"فرع :","وهران ",null,null,null,null,2,null,"2019-06-16",null,null,"المسائية","التربية الإسلامية"]
["مديرية التربية لولاية :",null,"تلمسان",null,null,null,null,null,null,null,null,3,"اليوم الثاني","2019-06-17",null,null,"الصباحية ","الرياضيات"]
["امتحان :",null,"شهادة البكالوريا",null,null,"دورة :","جوان   2019",null,null,null,null,4,null,"2019-06-17",null,null,"المسائية","اللغة الانجليزية"]
["مركز الإجراء :",null,"ثانوية بوزيدي محمد ",null,null,"بـ :","صبرة ",null,null,null,null,5,"اليوم الثالث","2019-06-18",null,null,"الصباحية ","علوم الطبيعة و الحياة ","تكنولوجيا "]
["رمز المركز :",null,7182,null,null,null,null,null,null,null,null,6,null,"2019-06-18",null,null,"المسائية","اللغة الفرنسية"]
["رئيس المركز :",null,null,null,null,"الإطار :","مدير ثانوية ",null,null,null,null,7,"اليوم الرابع","2019-06-19",null,null,"الصباحية ","التاريخ والجغرافيا"]
["نائب رئيس المركز :",null,null,null,null,"الإطار :","ناظر ",null,null,null,null,8,null,"2019-06-19",null,null,"المسائية"]
["عدد الساعات الممنوحة للحراس",null,null,null,null,"عدد أيام الامتحان",null,null,5,null,null,9,"اليوم الخامس","2019-06-20",null,null,"الصباحية ","الفيزياء والكيمياء"]
[null,null,null,null,null,null,null,null,null,null,null,10,null,"2019-06-20",null,null,"المسائية","الفلسفة"]
[]
[null,"عدد الأساتـــذة الحراس :",null,null,null,113,null,"عدد فترات الحراسة :",null,null,null,9,null,"عدد الحراس في كل فترات الامتحان  : ",null,null,null,null,{"$f":"L15*L13","v":531}]
[null,"عدد الحراس في القاعة :",null,null,null,3,null,"عدد الحراس في الاحتياط :",null,null,null,14,null,"عدد فترات الحراسة لكل حارس :",null,null,null,null,{"$f":"S13/F13","v":4.6991150442477876}]
[null,"عدد القــــــــــــاعات",null,null,null,15,null,"عدد الحراس في كل فترة : ",null,null,null,{"$f":"(F15*F14)+L14","v":59}]

{"sheet":"data","index":1,"n_rows":211,"n_cols":10,"rows_kept":211,"cut":false,"hidden":false,"merged":[[6,1,8,12],[10,6,10,7]]}
[]
[]
[]
[]
[]
[]
[null,"معلومات الحراس"]
[]
[]
[]
["الرقم","اللقب والاسم","الاطار","المادة","مؤسسة العمل","الجنس","المواد",null,"المؤسسات","الجنس"]
[1,"لحسايني محمد","أ.ت.ث","اللغة الانجليزية","ثا.بوعزة ميلود مغنية ","H","اللغة الانجليزية","ANG","ثا.بوعزة ميلود مغنية ","H"]
[2,"علي","أ.ت.ث","اللغة العربية","ثا.بوعزة ميلود مغنية ","H","اللغة العربية","AR","متوسطة العابدي - صبرة ","F"]
[3,"عائشة 1","أ.ت.ث","اللغة العربية","ثا.بوعزة ميلود مغنية ","F","التربية الإسلامية","EI","إبتداية الخوارزمي - مغنية "]
[4,"رقية 1","أ.ت.ث","التربية البدنية","ثا.بوعزة ميلود مغنية ","F","التربية البدنية","EP","متوسطة ابو هريرة "]
[5,"سعيد ","أ.ت.ث","اللغة الفرنسية","ثا.بوعزة ميلود مغنية ","H","اللغة الفرنسية","FR","ثا.المقـــري "]
[6,"أيمن 1","أ.ت.ث","التربية البدنية","ثا.بوعزة ميلود مغنية ","H","التاريخ والجغرافيا","HG"]
[7,"فاطمة 1","أ.ت.ث","معلوماتية ","ثا.بوعزة ميلود مغنية ","F","الرياضيات","MAT"]
[8,"لحسايني محمد","أ.ت.ث","اللغة العربية","ثا.بوعزة ميلود مغنية ","H","الفيزياء والكيمياء","PYC"]
[9,"علي","أ.ت.ث","علوم الطبيعة و الحياة ","ثا.بوعزة ميلود مغنية ","H","معلوماتية ","INF"]
[10,"عائشة 2","أ.ت.ث","التربية البدنية","ثا.بوعزة ميلود مغنية ","F","الفلسفة","PHIL"]
[11,"رقية 2","أ.ت.ث","اللغة الفرنسية","ثا.بوعزة ميلود مغنية ","F","علوم الطبيعة و الحياة ","SVT"]
[12,"سعيد ","أ.ت إ","اللغة العربية","إبتداية الخوارزمي - مغنية ","H","تكنولوجيا ","TEH"]
[13,"أيمن 2","أ.ت إ","اللغة العربية","إبتداية الخوارزمي - مغنية ","H","إسبانية ","ESP"]
[14,"فاطمة 2","أ.ت إ","اللغة العربية","إبتداية الخوارزمي - مغنية ","F"]
[15,"لحسايني محمد","أ.ت إ","اللغة العربية","إبتداية الخوارزمي - مغنية ","H"]
[16,"علي","أ.ت إ","اللغة العربية","إبتداية الخوارزمي - مغنية ","H"]
[17,"عائشة 3","أ.ت إ","اللغة العربية","إبتداية الخوارزمي - مغنية ","F"]
[18,"رقية 3","أ.ت إ","اللغة العربية","إبتداية الخوارزمي - مغنية ","F"]
[19,"سعيد ","أ.ت إ","اللغة العربية","إبتداية الخوارزمي - مغنية ","H"]
[20,"أيمن 3","أ.ت إ","اللغة العربية","إبتداية الخوارزمي - مغنية ","H"]
[21,"فاطمة 3","أ.ت إ","اللغة العربية","إبتداية الخوارزمي - مغنية ","F"]
[22,"لحسايني محمد","أ.ت إ","اللغة العربية","إبتداية الخوارزمي - مغنية ","H"]
[23,"علي","أ.ت إ","اللغة العربية","إبتداية الخوارزمي - مغنية ","H"]
[24,"عائشة 4","أ.ت إ","اللغة الفرنسية","إبتداية الخوارزمي - مغنية ","F"]
[25,"رقية 4","أ.ت إ","اللغة الفرنسية","إبتداية الخوارزمي - مغنية ","F"]
[26,"سعيد ","أ.ت .م","التربية الإسلامية","متوسطة ابو هريرة ","H"]
[27,"أيمن 4","أ.ت .م","اللغة الفرنسية","متوسطة ابو هريرة ","H"]
[28,"فاطمة 4","أ.ت .م","التاريخ والجغرافيا","متوسطة ابو هريرة ","F"]
[29,"لحسايني محمد","أ.ت .م","التاريخ والجغرافيا","متوسطة ابو هريرة ","H"]
[30,"علي","أ.ت .م","الرياضيات","متوسطة ابو هريرة ","H"]
[31,"عائشة 5","أ.ت .م","التاريخ والجغرافيا","متوسطة ابو هريرة ","F"]
[32,"رقية 5","أ.ت .م","التربية الإسلامية","متوسطة ابو هريرة ","F"]
[33,"سعيد ","أ.ت .م","اللغة الفرنسية","متوسطة ابو هريرة ","H"]
[34,"أيمن 5","أ.ت .م","التربية الإسلامية","متوسطة ابو هريرة ","H"]
[35,"فاطمة 5","أ.ت .م","اللغة الفرنسية","متوسطة ابو هريرة ","F"]
[36,"لحسايني محمد","أ.ت .م","التاريخ والجغرافيا","متوسطة ابو هريرة ","H"]
[37,"علي","أ.ت .م","التاريخ والجغرافيا","متوسطة ابو هريرة ","H"]
[38,"عائشة 6","أ.ت .م","الرياضيات","متوسطة العابدي - صبرة ","F"]
[39,"رقية 6","أ.ت .م","التاريخ والجغرافيا","متوسطة العابدي - صبرة ","F"]
[40,"سعيد ","أ.ت .م","التربية الإسلامية","متوسطة العابدي - صبرة ","H"]
[41,"أيمن 6","أ.ت .م","اللغة الفرنسية","متوسطة العابدي - صبرة ","H"]
[42,"فاطمة 6","أ.ت .م","التربية الإسلامية","متوسطة العابدي - صبرة ","F"]
[43,"لحسايني محمد","أ.ت .م","اللغة الفرنسية","متوسطة العابدي - صبرة ","H"]
[44,"علي","أ.ت .م","التاريخ والجغرافيا","متوسطة العابدي - صبرة ","H"]
[45,"عائشة 7","أ.ت .م","التاريخ والجغرافيا","متوسطة العابدي - صبرة ","F"]
[46,"رقية 7","أ.ت .م","الرياضيات","متوسطة العابدي - صبرة ","F"]
[47,"سعيد ","أ.ت .م","التاريخ والجغرافيا","متوسطة العابدي - صبرة ","H"]
[48,"أيمن 7","أ.ت .م","التربية الإسلامية","متوسطة العابدي - صبرة ","H"]
[49,"فاطمة 7","أ.ت .م","اللغة الفرنسية","متوسطة العابدي - صبرة ","F"]
[50,"لحسايني محمد","أ.ت .م","التربية الإسلامية","متوسطة العابدي - صبرة ","H"]
[51,"علي","أ.ت .م","اللغة الفرنسية","متوسطة العابدي - صبرة ","H"]
[52,"عائشة 8","أ.ت .م","اللغة العربية","متوسطة العابدي - صبرة ","F"]
[53,"رقية 8","أ.ت إ","اللغة العربية","إبتداية الخوارزمي - مغنية ","F"]
[54,"سعيد ","أ.ت إ","اللغة العربية","إبتداية الخوارزمي - مغنية ","H"]
[55,"أيمن 8","أ.ت إ","اللغة العربية","إبتداية الخوارزمي - مغنية ","H"]
[56,"فاطمة 8","أ.ت إ","اللغة العربية","إبتداية الخوارزمي - مغنية ","F"]
[57,"لحسايني محمد","أ.ت.ث","التربية الإسلامية","ثا.المقـــري ","H"]
[58,"علي","أ.ت.ث","اللغة الفرنسية","ثا.المقـــري ","H"]
[59,"عائشة 9","أ.ت.ث","التربية الإسلامية","ثا.المقـــري ","F"]
[60,"رقية 9","أ.ت.ث","اللغة الفرنسية","ثا.المقـــري ","F"]
[61,"سعيد ","أ.ت.ث","التاريخ والجغرافيا","ثا.المقـــري ","H"]
[62,"أيمن 9","أ.ت.ث","التاريخ والجغرافيا","ثا.المقـــري ","H"]
[63,"فاطمة 9","أ.ت.ث","الرياضيات","ثا.المقـــري ","F"]
[64,"لحسايني محمد","أ.ت.ث","التاريخ والجغرافيا","ثا.المقـــري ","H"]
[65,"علي","أ.ت.ث","التربية الإسلامية","ثا.المقـــري ","H"]
[66,"عائشة 10","أ.ت.ث","اللغة الفرنسية","ثا.المقـــري ","F"]
[67,"رقية 10","أ.ت.ث","التربية الإسلامية","ثا.المقـــري ","F"]
[68,"سعيد ","أ.ت.ث","اللغة الفرنسية","ثا.المقـــري ","H"]
[69,"أيمن 10","أ.ت.ث","التربية الإسلامية","ثا.المقـــري ","H"]
[70,"فاطمة 10","أ.ت.ث","اللغة الفرنسية","ثا.المقـــري ","F"]
[71,"لحسايني محمد","أ.ت.ث","التربية الإسلامية","ثا.المقـــري ","H"]
[72,"علي","أ.ت.ث","اللغة الفرنسية","ثا.المقـــري ","H"]
[73,"عائشة 11","أ.ت.ث","التاريخ والجغرافيا","ثا.المقـــري ","F"]
[74,"رقية 11","أ.ت.ث","التاريخ والجغرافيا","ثا.المقـــري ","F"]
[75,"سعيد ","أ.ت.ث","الرياضيات","ثا.المقـــري ","H"]
[76,"أيمن 11","أ.ت.ث","التاريخ والجغرافيا","ثا.المقـــري ","H"]
[77,"فاطمة 11","أ.ت.ث","التربية الإسلامية","ثا.المقـــري ","F"]
[78,"لحسايني محمد","أ.ت.ث","اللغة الفرنسية","ثا.المقـــري ","H"]
[79,"علي","أ.ت.ث","التربية الإسلامية","ثا.المقـــري ","H"]
[80,"عائشة 12","أ.ت.ث","اللغة الفرنسية","ثا.المقـــري ","F"]
[81,"رقية 12","أ.ت إ","اللغة العربية","إبتداية الخوارزمي - مغنية ","F"]
[82,"سعيد ","أ.ت إ","اللغة العربية","إبتداية الخوارزمي - مغنية ","H"]
[83,"أيمن 12","أ.ت إ","اللغة العربية","إبتداية الخوارزمي - مغنية ","H"]
[84,"فاطمة 12","أ.ت إ","اللغة العربية","إبتداية الخوارزمي - مغنية ","F"]
[85,"لحسايني محمد","أ.ت م","اللغة الفرنسية","متوسطة ابو هريرة ","H"]
[86,"علي","أ.ت م","اللغة الفرنسية","متوسطة ابو هريرة ","H"]
[87,"عائشة 13","أ.ت م","اللغة العربية","متوسطة ابو هريرة ","F"]
[88,"رقية 13","أ.ت م","اللغة العربية","متوسطة ابو هريرة ","F"]
[89,"رقية 13","أ.ت إ","اللغة العربية","إبتداية الخوارزمي - مغنية ","F"]
[90,"سعيد ","أ.ت إ","اللغة العربية","إبتداية الخوارزمي - مغنية ","H"]
[91,"أيمن 13","أ.ت إ","اللغة العربية","إبتداية الخوارزمي - مغنية ","H"]
[92,"فاطمة 13","أ.ت إ","اللغة العربية","إبتداية الخوارزمي - مغنية ","F"]
[93,"لحسايني محمد","أ.ت م","اللغة الفرنسية","متوسطة ابو هريرة ","H"]
[94,"علي","أ.ت م","اللغة الفرنسية","متوسطة ابو هريرة ","H"]
[95,"عائشة 14","أ.ت م","اللغة العربية","متوسطة ابو هريرة ","F"]
[96,"رقية 14","أ.ت م","اللغة العربية","متوسطة ابو هريرة ","F"]
[97,"رقية 14","أ.ت إ","اللغة العربية","إبتداية الخوارزمي - مغنية ","F"]
[98,"سعيد ","أ.ت إ","اللغة العربية","إبتداية الخوارزمي - مغنية ","H"]
[99,"أيمن 14","أ.ت إ","اللغة العربية","إبتداية الخوارزمي - مغنية ","H"]
[100,"فاطمة 14","أ.ت إ","اللغة العربية","إبتداية الخوارزمي - مغنية ","F"]
[101,"لحسايني محمد","أ.ت م","اللغة الفرنسية","متوسطة ابو هريرة ","H"]
[102,"علي","أ.ت م","اللغة الفرنسية","متوسطة ابو هريرة ","H"]
[103,"عائشة 15","أ.ت م","اللغة العربية","متوسطة ابو هريرة ","F"]
[104,"رقية 15","أ.ت م","اللغة العربية","متوسطة ابو هريرة ","F"]
[105,"رقية 15","أ.ت إ","اللغة العربية","إبتداية الخوارزمي - مغنية ","F"]
[106,"سعيد ","أ.ت إ","اللغة العربية","إبتداية الخوارزمي - مغنية ","H"]
[107,"فاطمة 15","أ.ت م","تكنولوجيا ","متوسطة العابدي - صبرة ","F"]
[108,"لحسايني محمد","أ.ت م","تكنولوجيا ","ثا.المقـــري ","H"]
[109,"علي","أ.ت م","تكنولوجيا ","ثا.المقـــري ","H"]
[110,"عائشة 16","أ.ت م","علوم الطبيعة و الحياة ","ثا.المقـــري ","F"]
[111,"رقية 15","أ.ت م","تكنولوجيا ","ثا.المقـــري ","F"]
[112,"رقية 15","أ.ت م","الفيزياء والكيمياء","ثا.المقـــري ","F"]
[113,"سعيد ","أ.ت م","الرياضيات","ثا.المقـــري ","H"]
[114]
[115]
[116]
[117]
[118]
[119]
[120]
[121]
[122]
[123]
[124]
[125]
[126]
[127]
[128]
[129]
[130]
[131]
[132]
[133]
[134]
[135]
[136]
[137]
[138]
[139]
[140]
[141]
[142]
[143]
[144]
[145]
[146]
[147]
[148]
[149]
[150]
[151]
[152]
[153]
[154]
[155]
[156]
[157]
[158]
[159]
[160]
[161]
[162]
[163]
[164]
[165]
[166]
[167]
[168]
[169]
[170]
[171]
[172]
[173]
[174]
[175]
[176]
[177]
[178]
[179]
[180]
[181]
[182]
[183]
[184]
[185]
[186]
[187]
[188]
[189]
[190]
[191]
[192]
[193]
[194]
[195]
[196]
[197]
[198]
[199]
[200]

{"sheet":"data2","index":2,"n_rows":135,"n_cols":43,"rows_kept":135,"cut":false,"hidden":false,"merged":[[3,8,3,9],[2,8,2,9],[2,10,2,11],[2,12,2,13],[2,14,2,15],[2,16,2,17],[3,10,3,11],[3,12,3,13],[3,14,3,15],[3,16,3,17]]}
[null,null,null,null,null,null,null,"الاحتياط",{"$f":"COUNTIF(I6:I135,\"ح\")","v":0},{"$f":"COUNTIF(J6:J135,\"ح\")","v":0},0,0,0,0,0,0,0,0]
[null,null,null,null,null,null,null,"الحراس",{"$f":"I144-I1","v":0},0,0,0,0,0,0,0,0,0,null,null,null,null,null,null,null,null,null,null,null,null,null,null,null,null,null,null,null,null,null,null,5]
[null,null,null,null,null,null,null,"التاريخ",{"$f":"المعطيات!N2","v":"2019-06-16"},null,{"$f":"المعطيات!N4","v":"2019-06-17"},null,{"$f":"المعطيات!N6","v":"2019-06-18"},null,{"$f":"المعطيات!N9","v":"2019-06-19"},null,{"$f":"المعطيات!N11","v":"2019-06-20"}]
[null,null,null,null,null,null,null,"اليوم ","اليوم الأول",null,"اليوم الثاني ",null,"اليوم الثالث",null,"اليوم الرابع",null,"اليوم الخامس",null,null,null,null,null,null,null,null,null,null,null,null,null,null,null,null,null,null,null,null,null,null,null,null,null,"اليوم :"]
[null,null,null,null,null,null,null,"الفترة","ص","م","ص","م","ص","م","ص","م","ص","م",null,null,null,null,null,null,null,null,null,null,null,null,null,null,null,null,null,null,null,null,null,null,null,null,"الفترة :"]
["الرقم","اسم و لقب الحارس","المادة","المؤسسة ",null,"القاعات","الرمز",null,null,null,null,null,null,null,null,null,null,null,1,2,3,4,5,6,7,8,9,10,"م.الاحتياط",1,2,3,4,5,6,7,8,9,10,"المجموع",null,"م.الأيام"]
[1,"لحسايني محمد","اللغة الانجليزية","ثا.بوعزة ميلود مغنية ",null,1,"A",null,null,null,null,null,null,null,null,null,null,null,{"$f":"COUNTIF(I7,\"ح\")","v":0},{"$f":"COUNTIF(J7,\"ح\")","v":0},{"$f":"COUNTIF(K7,\"ح\")","v":0},0,0,0,0,0,0,0,{"$f":"AB7+AA7+Z7+Y7+X7+W7+U7+T7+S7+V7","v":0},{"$f":"COUNTA(I7:I7)","v":0},0,0,{"$f":"COUNTA(L7:L7)","v":0},0,0,0,{"$f":"COUNTA(Q7:Q7)","v":0},{"$f":"COUNTA(Q7:Q7)","v":0},{"$f":"COUNTA(R7:R7)","v":0},{"$f":"AM7+AL7+AK7+AJ7+AI7+AH7+AG7+AF7+AE7+AD7","v":0},{"$f":"AC7","v":0},{"$f":"(AN7-AO7)/2","v":0},{"$f":"SUM(AD7:AN7)","v":0}]
[2,"علي","اللغة العربية","ثا.بوعزة ميلود مغنية ",null,2,"A",null,null,null,null,null,null,null,null,null,null,null,0,0,0,0,0,0,0,0,0,0,{"$f":"AB8+AA8+Z8+Y8+X8+W8+U8+T8+S8+V8","v":0},0,0,0,0,0,0,0,{"$f":"COUNTA(Q8:Q8)","v":0},0,{"$f":"COUNTA(R8:R8)","v":0},{"$f":"AM8+AL8+AK8+AJ8+AI8+AH8+AG8+AF8+AE8+AD8","v":0},{"$f":"AC8","v":0},{"$f":"(AN8-AO8)/2","v":0},{"$f":"SUM(AD8:AN8)","v":0}]
[5,"سعيد ","اللغة الفرنسية","ثا.بوعزة ميلود مغنية ",null,3,"B",null,null,null,null,null,null,null,null,null,null,null,0,0,0,0,0,0,0,0,0,0,0,0,0,0,0,0,0,0,0,0,0,0,0,0,0]
[6,"أيمن 1","التربية البدنية","ثا.بوعزة ميلود مغنية ",null,4,"C",null,null,null,null,null,null,null,null,null,null,null,0,0,0,0,0,0,0,0,0,0,0,0,0,0,0,0,0,0,0,0,0,0,0,0,0]
[8,"لحسايني محمد","اللغة العربية","ثا.بوعزة ميلود مغنية ",null,5,"D",null,null,null,null,null,null,null,null,null,null,null,0,0,0,0,0,0,0,0,0,0,0,0,0,0,0,0,0,0,0,0,0,0,0,0,0]
[9,"علي","علوم الطبيعة و الحياة ","ثا.بوعزة ميلود مغنية ",null,6,"A",null,null,null,null,null,null,null,null,null,null,null,0,0,0,0,0,0,0,0,0,0,0,0,0,0,0,0,0,0,0,0,0,0,0,0,0]
[12,"سعيد ","اللغة العربية","إبتداية الخوارزمي - مغنية ",null,7,"A",null,null,null,null,null,null,null,null,null,null,null,0,0,0,0,0,0,0,0,0,0,0,0,0,0,0,0,0,0,0,0,0,0,0,0,0]
[13,"أيمن 2","اللغة العربية","إبتداية الخوارزمي - مغنية ",null,8,"C",null,null,null,null,null,null,null,null,null,null,null,0,0,0,0,0,0,0,0,0,0,0,0,0,0,0,0,0,0,0,0,0,0,0,0,0]
[15,"لحسايني محمد","اللغة العربية","إبتداية الخوارزمي - مغنية ",null,9,"C",null,null,null,null,null,null,null,null,null,null,null,0,0,0,0,0,0,0,0,0,0,0,0,0,0,0,0,0,0,0,0,0,0,0,0,0]
[16,"علي","اللغة العربية","إبتداية الخوارزمي - مغنية ",null,10,"C",null,null,null,null,null,null,null,null,null,null,null,0,0,0,0,0,0,0,0,0,0,0,0,0,0,0,0,0,0,0,0,0,0,0,0,0]
[19,"سعيد ","اللغة العربية","إبتداية الخوارزمي - مغنية ",null,11,"C",null,null,null,null,null,null,null,null,null,null,null,0,0,0,0,0,0,0,0,0,0,0,0,0,0,0,0,0,0,0,0,0,0,0,0,0]
[20,"أيمن 3","اللغة العربية","إبتداية الخوارزمي - مغنية ",null,12,"D",null,null,null,null,null,null,null,null,null,null,null,0,0,0,0,0,0,0,0,0,0,0,0,0,0,0,0,0,0,0,0,0,0,0,0,0]
[22,"لحسايني محمد","اللغة العربية","إبتداية الخوارزمي - مغنية ",null,13,null,null,null,null,null,null,null,null,null,null,null,null,0,0,0,0,0,0,0,0,0,0,0,0,0,0,0,0,0,0,0,0,0,0,0,0,0]
[23,"علي","اللغة العربية","إبتداية الخوارزمي - مغنية ",null,14,null,null,null,null,null,null,null,null,null,null,null,null,0,0,0,0,0,0,0,0,0,0,0,0,0,0,0,0,0,0,0,0,0,0,0,0,0]
[26,"سعيد ","التربية الإسلامية","متوسطة ابو هريرة ",null,15,null,null,null,null,null,null,null,null,null,null,null,null,0,0,0,0,0,0,0,0,0,0,0,0,0,0,0,0,0,0,0,0,0,0,0,0,0]
[27,"أيمن 4","اللغة الفرنسية","متوسطة ابو هريرة ",null,16,null,null,null,null,null,null,null,null,null,null,null,null,0,0,0,0,0,0,0,0,0,0,0,0,0,0,0,0,0,0,0,0,0,0,0,0,0]
[29,"لحسايني محمد","التاريخ والجغرافيا","متوسطة ابو هريرة ",null,17,null,null,null,null,null,null,null,null,null,null,null,null,0,0,0,0,0,0,0,0,0,0,0,{"$f":"COUNTA(I23:I23)","v":0},0,0,0,0,0,0,0,0,0,0,0,0,0]
[30,"علي","الرياضيات","متوسطة ابو هريرة ",null,18,null,null,null,null,null,null,null,null,null,null,null,null,0,0,0,0,0,0,0,0,0,0,0,0,0,0,0,0,0,0,0,0,0,0,0,0,0]
[33,"سعيد ","اللغة الفرنسية","متوسطة ابو هريرة ",null,19,null,null,null,null,null,null,null,null,null,null,null,null,0,0,0,0,0,0,0,0,0,0,0,0,0,0,0,0,0,0,0,0,0,0,0,0,0]
[34,"أيمن 5","التربية الإسلامية","متوسطة ابو هريرة ",null,20,null,null,null,null,null,null,null,null,null,null,null,null,0,0,0,0,0,0,0,0,0,0,0,0,0,0,0,0,0,0,0,0,0,0,0,0,0]
[36,"لحسايني محمد","التاريخ والجغرافيا","متوسطة ابو هريرة ",null,21,null,null,null,null,null,null,null,null,null,null,null,null,0,0,0,0,0,0,0,0,0,0,0,0,0,0,0,0,0,0,0,0,0,0,0,0,0]
[37,"علي","التاريخ والجغرافيا","متوسطة ابو هريرة ",null,22,null,null,null,null,null,null,null,null,null,null,null,null,0,0,0,0,0,0,0,0,0,0,0,0,0,0,0,0,0,0,0,0,0,0,0,0,0]
[40,"سعيد ","التربية الإسلامية","متوسطة العابدي - صبرة ",null,23,null,null,null,null,null,null,null,null,null,null,null,null,0,0,0,0,0,0,0,0,0,0,0,0,0,0,0,0,0,0,0,0,0,0,0,0,0]
[41,"أيمن 6","اللغة الفرنسية","متوسطة العابدي - صبرة ",null,24,null,null,null,null,null,null,null,null,null,null,null,null,0,0,0,0,0,0,0,0,0,0,0,0,0,0,0,0,0,0,0,0,0,0,0,0,0]
[43,"لحسايني محمد","اللغة الفرنسية","متوسطة العابدي - صبرة ",null,25,null,null,null,null,null,null,null,null,null,null,null,null,0,0,0,0,0,0,0,0,0,0,0,0,0,0,0,0,0,0,0,0,0,0,0,0,0]
[44,"علي","التاريخ والجغرافيا","متوسطة العابدي - صبرة ",null,26,null,null,null,null,null,null,null,null,null,null,null,null,0,0,0,0,0,0,0,0,0,0,0,0,0,0,0,0,0,0,0,0,0,0,0,0,0]
[47,"سعيد ","التاريخ والجغرافيا","متوسطة العابدي - صبرة ",null,27,null,null,null,null,null,null,null,null,null,null,null,null,0,0,0,0,0,0,0,0,0,0,0,0,0,0,0,0,0,0,0,0,0,0,0,0,0]
[48,"أيمن 7","التربية الإسلامية","متوسطة العابدي - صبرة ",null,28,null,null,null,null,null,null,null,null,null,null,null,null,0,0,0,0,0,0,0,0,0,0,0,0,0,0,0,0,0,0,0,0,0,0,0,0,0]
[50,"لحسايني محمد","التربية الإسلامية","متوسطة العابدي - صبرة ",null,29,null,null,null,null,null,null,null,null,null,null,null,null,0,0,0,0,0,0,0,0,0,0,0,0,0,0,0,0,0,0,0,0,0,0,0,0,0]
[51,"علي","اللغة الفرنسية","متوسطة العابدي - صبرة ",null,30,null,null,null,null,null,null,null,null,null,null,null,null,0,0,0,0,0,0,0,0,0,0,0,0,0,0,0,0,0,0,0,0,0,0,0,0,0]
[54,"سعيد ","اللغة العربية","إبتداية الخوارزمي - مغنية ",null,31,null,null,null,null,null,null,null,null,null,null,null,null,0,0,0,0,0,0,0,0,0,0,0,0,0,0,0,0,0,0,0,0,0,0,0,0,0]
[55,"أيمن 8","اللغة العربية","إبتداية الخوارزمي - مغنية ",null,32,null,null,null,null,null,null,null,null,null,null,null,null,0,0,0,0,0,0,0,0,0,{"$f":"COUNTIF(R38,\"ح\")","v":0},0,0,0,0,0,0,0,0,0,0,0,0,0,0,0]
[57,"لحسايني محمد","التربية الإسلامية","ثا.المقـــري ",null,33,null,null,null,null,null,null,null,null,null,null,null,null,{"$f":"COUNTIF(I39,\"ح\")","v":0},0,0,0,0,0,0,0,0,0,0,0,0,0,0,0,0,0,0,0,0,0,0,0,0]
[58,"علي","اللغة الفرنسية","ثا.المقـــري ",null,34,null,null,null,null,null,null,null,null,null,null,null,null,0,0,0,0,0,0,0,0,0,0,0,0,0,0,0,0,0,0,0,0,0,0,0,0,0]
[61,"سعيد ","التاريخ والجغرافيا","ثا.المقـــري ",null,35,null,null,null,null,null,null,null,null,null,null,null,null,0,0,0,0,0,0,0,0,0,0,0,0,0,0,0,0,0,0,0,0,0,0,0,0,0]
[62,"أيمن 9","التاريخ والجغرافيا","ثا.المقـــري ",null,36,null,null,null,null,null,null,null,null,null,null,null,null,0,0,0,0,0,0,0,0,0,0,0,0,0,0,0,0,0,0,0,0,0,0,0,0,0]
[64,"لحسايني محمد","التاريخ والجغرافيا","ثا.المقـــري ",null,37,null,null,null,null,null,null,null,null,null,null,null,null,0,0,0,0,0,0,0,0,0,0,0,0,0,0,0,0,0,0,0,0,0,0,0,0,0]
[65,"علي","التربية الإسلامية","ثا.المقـــري ",null,38,null,null,null,null,null,null,null,null,null,null,null,null,0,0,0,0,0,0,0,0,0,0,0,0,0,0,0,0,0,0,0,0,0,0,0,0,0]
[68,"سعيد ","اللغة الفرنسية","ثا.المقـــري ",null,39,null,null,null,null,null,null,null,null,null,null,null,null,0,0,0,0,0,0,0,0,0,0,0,0,0,0,0,0,0,0,0,0,0,0,0,0,0]
[69,"أيمن 10","التربية الإسلامية","ثا.المقـــري ",null,40,null,null,null,null,null,null,null,null,null,null,null,null,0,0,0,0,0,0,0,0,0,0,0,0,0,0,0,0,0,0,0,0,0,0,0,0,0]
[71,"لحسايني محمد","التربية الإسلامية","ثا.المقـــري ",null,null,null,null,null,null,null,null,null,null,null,null,null,null,0,0,0,0,0,0,0,0,0,0,0,0,0,0,0,0,0,0,0,0,0,0,0,0,0]
[72,"علي","اللغة الفرنسية","ثا.المقـــري ",null,null,null,null,null,null,null,null,null,null,null,null,null,null,0,0,0,0,0,0,0,0,0,0,0,0,0,0,0,0,0,0,0,0,0,0,0,0,0]
[75,"سعيد ","الرياضيات","ثا.المقـــري ",null,null,null,null,null,null,null,null,null,null,null,null,null,null,0,0,0,0,0,0,0,0,0,0,0,0,0,0,0,0,0,0,0,0,0,0,0,0,0]
[76,"أيمن 11","التاريخ والجغرافيا","ثا.المقـــري ",null,null,null,null,null,null,null,null,null,null,null,null,null,null,0,0,0,0,0,0,0,0,0,0,0,0,0,0,0,0,0,0,0,0,0,0,0,0,0]
[78,"لحسايني محمد","اللغة الفرنسية","ثا.المقـــري ",null,null,null,null,null,null,null,null,null,null,null,null,null,null,0,0,0,0,0,0,0,0,0,0,0,0,0,0,0,0,0,0,0,0,0,0,0,0,0]
[79,"علي","التربية الإسلامية","ثا.المقـــري ",null,null,null,null,null,null,null,null,null,null,null,null,null,null,0,0,0,0,0,0,0,0,0,0,0,0,0,0,0,0,0,0,0,0,0,0,0,0,0]
[82,"سعيد ","اللغة العربية","إبتداية الخوارزمي - مغنية ",null,null,null,null,null,null,null,null,null,null,null,null,null,null,0,0,0,0,0,0,0,0,0,0,0,0,0,0,0,0,0,0,0,0,0,0,0,0,0]
[83,"أيمن 12","اللغة العربية","إبتداية الخوارزمي - مغنية ",null,null,null,null,null,null,null,null,null,null,null,null,null,null,0,0,0,0,0,0,0,0,0,0,0,0,0,0,0,0,0,0,0,0,0,0,0,0,0]
[85,"لحسايني محمد","اللغة الفرنسية","متوسطة ابو هريرة ",null,null,null,null,null,null,null,null,null,null,null,null,null,null,0,0,0,0,0,0,0,0,0,0,0,0,0,0,0,0,0,0,0,0,0,0,0,0,0]
[86,"علي","اللغة الفرنسية","متوسطة ابو هريرة ",null,null,null,null,null,null,null,null,null,null,null,null,null,null,0,0,0,0,0,0,0,0,0,0,0,0,0,0,0,0,0,0,0,0,0,0,0,0,0]
[90,"سعيد ","اللغة العربية","إبتداية الخوارزمي - مغنية ",null,null,null,null,null,null,null,null,null,null,null,null,null,null,0,0,0,0,0,0,0,0,0,0,0,0,0,0,0,0,0,0,0,0,0,0,0,0,0]
[91,"أيمن 13","اللغة العربية","إبتداية الخوارزمي - مغنية ",null,null,null,null,null,null,null,null,null,null,null,null,null,null,0,0,0,0,0,0,0,0,0,0,0,0,0,0,0,0,0,0,0,0,0,0,0,0,0]
[93,"لحسايني محمد","اللغة الفرنسية","متوسطة ابو هريرة ",null,null,null,null,null,null,null,null,null,null,null,null,null,null,0,0,0,0,0,0,0,0,0,0,0,0,0,0,{"$f":"COUNTA(L59:L59)","v":0},0,0,0,0,0,0,0,0,0,0]
[94,"علي","اللغة الفرنسية","متوسطة ابو هريرة ",null,null,null,null,null,null,null,null,null,null,null,null,null,null,0,0,0,0,0,0,0,0,0,0,0,{"$f":"COUNTA(I60:I60)","v":0},0,0,0,0,0,0,0,0,0,0,0,0,0]
[98,"سعيد ","اللغة العربية","إبتداية الخوارزمي - مغنية ",null,null,null,null,null,null,null,null,null,null,null,null,null,null,0,0,0,0,0,0,0,0,0,0,0,0,0,0,0,0,0,0,0,0,0,0,0,0,0]
[99,"أيمن 14","اللغة العربية","إبتداية الخوارزمي - مغنية ",null,null,null,null,null,null,null,null,null,null,null,null,null,null,0,0,0,0,0,0,0,0,0,0,0,0,0,0,0,0,0,0,0,0,0,0,0,0,0]
[101,"لحسايني محمد","اللغة الفرنسية","متوسطة ابو هريرة ",null,null,null,null,null,null,null,null,null,null,null,null,null,null,0,0,0,0,0,0,0,0,0,0,0,0,0,0,0,0,0,0,0,0,0,0,0,0,0]
[102,"علي","اللغة الفرنسية","متوسطة ابو هريرة ",null,null,null,null,null,null,null,null,null,null,null,null,null,null,0,0,0,0,0,0,0,0,0,0,0,0,0,0,0,0,0,0,0,0,0,0,0,0,0]
[106,"سعيد ","اللغة العربية","إبتداية الخوارزمي - مغنية ",null,null,null,null,null,null,null,null,null,null,null,null,null,null,0,0,0,0,0,0,0,0,0,0,0,0,0,0,0,0,0,0,0,0,0,0,0,0,0]
[108,"لحسايني محمد","تكنولوجيا ","ثا.المقـــري ",null,null,null,null,null,null,null,null,null,null,null,null,null,null,0,0,0,0,0,0,0,0,0,0,0,0,0,0,0,0,0,0,0,0,0,0,0,0,0]
[109,"علي","تكنولوجيا ","ثا.المقـــري ",null,null,null,null,null,null,null,null,null,null,null,null,null,null,0,0,0,{"$f":"COUNTIF(L67,\"ح\")","v":0},0,0,0,0,0,0,0,0,0,0,0,0,0,0,0,0,0,0,0,0,0]
[113,"سعيد ","الرياضيات","ثا.المقـــري ",null,null,null,null,null,null,null,null,null,null,null,null,null,null,{"$f":"COUNTIF(I68,\"ح\")","v":0},{"$f":"COUNTIF(J68,\"ح\")","v":0},{"$f":"COUNTIF(K68,\"ح\")","v":0},0,0,0,0,0,0,0,0,0,0,0,0,0,0,0,0,0,0,0,0,0,0]
[null,null,null,null,null,null,null,null,null,null,null,null,null,null,null,null,null,null,0,0,0,0,0,0,0,0,0,0,0,0,0,0,0,0,0,0,0,0,0,0,0,0,0]
[3,"عائشة 1","اللغة العربية","ثا.بوعزة ميلود مغنية ",null,null,null,null,null,null,null,null,null,null,null,null,null,null,0,0,0,0,0,0,0,0,0,0,0,0,0,0,0,0,0,0,0,0,0,0,0,0,0]
[4,"رقية 1","التربية البدنية","ثا.بوعزة ميلود مغنية ",null,null,null,null,null,null,null,null,null,null,null,null,null,null,0,0,0,0,0,0,0,0,0,0,0,0,0,0,0,0,0,0,0,0,0,0,0,0,0]
[7,"فاطمة 1","معلوماتية ","ثا.بوعزة ميلود مغنية ",null,null,null,null,null,null,null,null,null,null,null,null,null,null,0,0,0,0,0,0,0,0,0,0,{"$f":"AB72+AA72+Z72+Y72+X72+W72+U72+T72+S72+V72","v":0},0,0,0,0,0,0,0,{"$f":"COUNTA(Q72:Q72)","v":0},0,{"$f":"COUNTA(R72:R72)","v":0},{"$f":"AM72+AL72+AK72+AJ72+AI72+AH72+AG72+AF72+AE72+AD72","v":0},{"$f":"AC72","v":0},{"$f":"(AN72-AO72)/2","v":0},{"$f":"SUM(AD72:AN72)","v":0}]
[10,"عائشة 2","التربية البدنية","ثا.بوعزة ميلود مغنية ",null,null,null,null,null,null,null,null,null,null,null,null,null,null,0,0,0,0,0,0,0,0,0,0,0,0,0,0,0,0,0,0,0,0,0,0,0,0,0]
[11,"رقية 2","اللغة الفرنسية","ثا.بوعزة ميلود مغنية ",null,null,null,null,null,null,null,null,null,null,null,null,null,null,0,0,0,0,0,0,0,0,0,0,0,0,0,0,0,0,0,0,0,0,0,0,0,0,0]
[14,"فاطمة 2","اللغة العربية","إبتداية الخوارزمي - مغنية ",null,null,null,null,null,null,null,null,null,null,null,null,null,null,0,0,0,0,0,0,0,0,0,0,0,0,0,0,0,0,0,0,0,0,0,0,0,0,0]
[17,"عائشة 3","اللغة العربية","إبتداية الخوارزمي - مغنية ",null,null,null,null,null,null,null,null,null,null,null,null,null,null,0,0,0,0,0,0,0,0,0,0,0,0,0,0,0,0,0,0,0,0,0,0,0,0,0]
[18,"رقية 3","اللغة العربية","إبتداية الخوارزمي - مغنية ",null,null,null,null,null,null,null,null,null,null,null,null,null,null,0,0,0,0,0,0,0,0,0,0,0,0,0,0,0,0,0,0,0,0,0,0,0,0,0]
[21,"فاطمة 3","اللغة العربية","إبتداية الخوارزمي - مغنية ",null,null,null,null,null,null,null,null,null,null,null,null,null,null,0,0,0,0,0,0,0,0,0,0,0,0,0,0,0,0,0,0,0,0,0,0,0,0,0]
[24,"عائشة 4","اللغة الفرنسية","إبتداية الخوارزمي - مغنية ",null,null,null,null,null,null,null,null,null,null,null,null,null,null,0,0,0,0,0,0,0,0,0,0,0,0,0,0,0,0,0,0,0,0,0,0,0,0,0]
[25,"رقية 4","اللغة الفرنسية","إبتداية الخوارزمي - مغنية ",null,null,null,null,null,null,null,null,null,null,null,null,null,null,0,0,0,0,0,0,0,0,0,0,0,0,0,0,0,0,0,0,0,0,0,0,0,0,0]
[28,"فاطمة 4","التاريخ والجغرافيا","متوسطة ابو هريرة ",null,null,null,null,null,null,null,null,null,null,null,null,null,null,0,0,0,0,0,0,0,0,0,0,0,0,0,0,0,0,0,0,0,0,0,0,0,0,0]
[31,"عائشة 5","التاريخ والجغرافيا","متوسطة ابو هريرة ",null,null,null,null,null,null,null,null,null,null,null,null,null,null,0,0,0,0,0,0,0,0,0,0,0,0,0,0,0,0,0,0,0,0,0,0,0,0,0]
[32,"رقية 5","التربية الإسلامية","متوسطة ابو هريرة ",null,null,null,null,null,null,null,null,null,null,null,null,null,null,0,0,0,0,0,0,0,0,0,0,0,0,0,0,0,0,0,0,0,0,0,0,0,0,0]
[35,"فاطمة 5","اللغة الفرنسية","متوسطة ابو هريرة ",null,null,null,null,null,null,null,null,null,null,null,null,null,null,0,0,0,0,0,0,0,0,0,0,0,0,0,0,0,0,0,0,0,0,0,0,0,0,0]
[38,"عائشة 6","الرياضيات","متوسطة العابدي - صبرة ",null,null,null,null,null,null,null,null,null,null,null,null,null,null,0,0,0,0,0,0,0,0,0,0,0,0,0,0,0,0,0,0,0,0,0,0,0,0,0]
[39,"رقية 6","التاريخ والجغرافيا","متوسطة العابدي - صبرة ",null,null,null,null,null,null,null,null,null,null,null,null,null,null,0,0,0,0,0,0,0,0,0,0,0,0,0,0,0,0,0,0,0,0,0,0,0,0,0]
[42,"فاطمة 6","التربية الإسلامية","متوسطة العابدي - صبرة ",null,null,null,null,null,null,null,null,null,null,null,null,null,null,0,0,0,0,0,0,0,0,0,0,0,0,0,0,0,0,0,0,0,0,0,0,0,0,0]
[45,"عائشة 7","التاريخ والجغرافيا","متوسطة العابدي - صبرة ",null,null,null,null,null,null,null,null,null,null,null,null,null,null,0,0,0,0,0,0,0,0,0,0,0,0,0,0,0,0,0,0,0,0,0,0,0,0,0]
[46,"رقية 7","الرياضيات","متوسطة العابدي - صبرة ",null,null,null,null,null,null,null,null,null,null,null,null,null,null,0,0,0,0,0,0,0,0,0,0,0,0,0,0,0,0,0,0,0,0,0,0,0,0,0]
[49,"فاطمة 7","اللغة الفرنسية","متوسطة العابدي - صبرة ",null,null,null,null,null,null,null,null,null,null,null,null,null,null,0,0,0,0,0,0,0,0,0,0,0,0,0,0,0,0,0,0,0,0,0,0,0,0,0]
[52,"عائشة 8","اللغة العربية","متوسطة العابدي - صبرة ",null,null,null,null,null,null,null,null,null,null,null,null,null,null,0,0,0,0,0,0,0,0,0,0,0,0,0,0,0,0,0,0,0,0,0,0,0,0,0]
[53,"رقية 8","اللغة العربية","إبتداية الخوارزمي - مغنية ",null,null,null,null,null,null,null,null,null,null,null,null,null,null,0,0,0,0,0,0,0,0,0,0,0,0,0,0,0,0,0,0,0,0,0,0,0,0,0]
[56,"فاطمة 8","اللغة العربية","إبتداية الخوارزمي - مغنية ",null,null,null,null,null,null,null,null,null,null,null,null,null,null,0,0,0,0,0,0,0,0,0,0,0,0,0,0,0,0,0,0,0,0,0,0,0,0,0]
[59,"عائشة 9","التربية الإسلامية","ثا.المقـــري ",null,null,null,null,null,null,null,null,null,null,null,null,null,null,0,0,0,0,0,0,0,0,0,0,0,0,0,0,0,0,0,0,0,0,0,0,0,0,0]
[60,"رقية 9","اللغة الفرنسية","ثا.المقـــري ",null,null,null,null,null,null,null,null,null,null,null,null,null,null,0,0,0,0,0,0,0,0,0,0,0,0,0,0,0,0,0,0,0,0,0,0,0,0,0]
[63,"فاطمة 9","الرياضيات","ثا.المقـــري ",null,null,null,null,null,null,null,null,null,null,null,null,null,null,0,0,0,0,0,0,0,0,0,0,0,0,0,0,0,0,0,0,0,0,0,0,0,0,0]
[66,"عائشة 10","اللغة الفرنسية","ثا.المقـــري ",null,null,null,null,null,null,null,null,null,null,null,null,null,null,0,0,0,0,0,0,0,0,0,0,0,0,0,0,0,0,0,0,0,0,0,0,0,0,0]
[67,"رقية 10","التربية الإسلامية","ثا.المقـــري ",null,null,null,null,null,null,null,null,null,null,null,null,null,null,0,0,0,0,0,0,0,0,0,0,0,0,0,0,0,0,0,0,0,0,0,0,0,0,0]
[70,"فاطمة 10","اللغة الفرنسية","ثا.المقـــري ",null,null,null,null,null,null,null,null,null,null,null,null,null,null,0,0,0,{"$f":"COUNTIF(L99,\"ح\")","v":0},0,0,0,0,0,0,0,0,0,0,0,0,0,0,0,0,0,0,0,0,0]
[73,"عائشة 11","التاريخ والجغرافيا","ثا.المقـــري ",null,null,null,null,null,null,null,null,null,null,null,null,null,null,{"$f":"COUNTIF(I100,\"ح\")","v":0},0,0,0,0,0,0,0,0,0,0,0,0,0,0,0,0,0,0,0,0,0,0,0,0]
[74,"رقية 11","التاريخ والجغرافيا","ثا.المقـــري ",null,null,null,null,null,null,null,null,null,null,null,null,null,null,0,0,0,0,0,0,0,0,0,0,0,0,0,0,0,0,0,0,0,0,0,0,0,0,0]
[77,"فاطمة 11","التربية الإسلامية","ثا.المقـــري ",null,null,null,null,null,null,null,null,null,null,null,null,null,null,0,0,0,0,0,0,0,0,0,0,0,0,0,0,0,0,0,0,0,0,0,0,0,0,0]
[80,"عائشة 12","اللغة الفرنسية","ثا.المقـــري ",null,null,null,null,null,null,null,null,null,null,null,null,null,null,0,0,0,0,0,0,0,0,0,0,0,0,0,0,0,0,0,0,0,0,0,0,0,0,0]
[81,"رقية 12","اللغة العربية","إبتداية الخوارزمي - مغنية ",null,null,null,null,null,null,null,null,null,null,null,null,null,null,0,0,0,0,0,0,0,0,0,0,0,0,0,0,0,0,0,0,0,0,0,0,0,0,0]
[84,"فاطمة 12","اللغة العربية","إبتداية الخوارزمي - مغنية ",null,null,null,null,null,null,null,null,null,null,null,null,null,null,0,0,0,0,0,0,0,0,0,0,0,0,0,0,0,0,0,0,0,0,0,0,0,0,0]
[87,"عائشة 13","اللغة العربية","متوسطة ابو هريرة ",null,null,null,null,null,null,null,null,null,null,null,null,null,null,0,0,0,0,0,0,0,0,0,0,0,0,0,0,0,0,0,0,0,0,0,0,0,0,0]
[88,"رقية 13","اللغة العربية","متوسطة ابو هريرة ",null,null,null,null,null,null,null,null,null,null,null,null,null,null,0,0,0,0,0,0,0,0,0,0,0,0,0,0,0,0,0,0,0,0,0,0,0,0,0]
[89,"رقية 13","اللغة العربية","إبتداية الخوارزمي - مغنية ",null,null,null,null,null,null,null,null,null,null,null,null,null,null,0,0,0,0,0,0,0,0,0,0,0,0,0,0,0,0,0,0,0,0,0,0,0,0,0]
[92,"فاطمة 13","اللغة العربية","إبتداية الخوارزمي - مغنية ",null,null,null,null,null,null,null,null,null,null,null,null,null,null,0,0,0,0,0,0,0,0,0,0,0,0,0,0,0,0,0,0,0,0,0,0,0,0,0]
[95,"عائشة 14","اللغة العربية","متوسطة ابو هريرة ",null,null,null,null,null,null,null,null,null,null,null,null,null,null,0,0,0,0,0,0,0,0,0,0,0,0,0,0,0,0,0,0,0,0,0,0,0,0,0]
[96,"رقية 14","اللغة العربية","متوسطة ابو هريرة ",null,null,null,null,null,null,null,null,null,null,null,null,null,null,0,0,0,0,0,0,0,0,0,0,0,0,0,0,0,0,0,0,0,0,0,0,0,0,0]
[97,"رقية 14","اللغة العربية","إبتداية الخوارزمي - مغنية ",null,null,null,null,null,null,null,null,null,null,null,null,null,null,0,0,0,0,0,0,0,0,0,0,0,0,0,0,0,0,0,0,0,0,0,0,0,0,0]
[100,"فاطمة 14","اللغة العربية","إبتداية الخوارزمي - مغنية ",null,null,null,null,null,null,null,null,null,null,null,null,null,null,0,0,0,0,0,0,0,0,0,0,0,0,0,0,0,0,0,0,0,0,0,0,0,0,0]
[103,"عائشة 15","اللغة العربية","متوسطة ابو هريرة ",null,null,null,null,null,null,null,null,null,null,null,null,null,null,0,0,0,0,0,0,0,0,0,0,0,0,0,0,0,0,0,0,0,0,0,0,0,0,0]
[104,"رقية 15","اللغة العربية","متوسطة ابو هريرة ",null,null,null,null,null,null,null,null,null,null,null,null,null,null,0,0,0,0,0,0,0,0,0,0,0,0,0,0,0,0,0,0,0,0,0,0,0,0,0]
[105,"رقية 15","اللغة العربية","إبتداية الخوارزمي - مغنية ",null,null,null,null,null,null,null,null,null,null,null,null,null,null,0,0,0,0,0,0,0,0,0,0,0,0,0,0,0,0,0,0,0,0,0,0,0,0,0]
[107,"فاطمة 15","تكنولوجيا ","متوسطة العابدي - صبرة ",null,null,null,null,null,null,null,null,null,null,null,null,null,null,0,0,0,0,0,0,0,0,0,0,0,0,0,0,0,0,0,0,0,0,0,0,0,0,0]
[110,"عائشة 16","علوم الطبيعة و الحياة ","ثا.المقـــري ",null,null,null,null,null,null,null,null,null,null,null,null,null,null,0,0,0,0,0,0,0,0,0,0,0,0,0,0,0,0,0,0,0,0,0,0,0,0,0]
[111,"رقية 15","تكنولوجيا ","ثا.المقـــري ",null,null,null,null,null,null,null,null,null,null,null,null,null,null,0,0,0,0,0,0,0,0,0,0,0,0,0,0,0,0,0,0,0,0,0,0,0,0,0]
[112,"رقية 15","الفيزياء والكيمياء","ثا.المقـــري ",null,null,null,null,null,null,null,null,null,null,null,null,null,null,0,0,0,0,0,0,0,0,0,0,0,0,0,0,0,0,0,0,0,0,0,0,0,0,0]
[null,null,null,null,null,null,null,null,null,null,null,null,null,null,null,null,null,null,0,0,0,0,0,0,0,0,0,0,0,0,0,0,0,0,0,0,0,0,0,0,0,0,0]
[null,null,null,null,null,null,null,null,null,null,null,null,null,null,null,null,null,null,0,0,0,0,0,0,0,0,0,0,0,0,0,0,0,0,0,{"$f":"COUNTA(O122:O122)","v":0},0,0,0,0,0,0,0]
[null,null,null,null,null,null,null,null,null,null,null,null,null,null,null,null,null,null,0,0,0,0,0,0,0,0,0,0,0,0,0,0,0,0,0,0,0,0,0,0,0,0,0]
[null,null,null,null,null,null,null,null,null,null,null,null,null,null,null,null,null,null,0,0,0,0,0,0,0,0,0,0,0,{"$f":"COUNTA(I124:I124)","v":0},{"$f":"COUNTA(J124:J124)","v":0},{"$f":"COUNTA(K124:K124)","v":0},{"$f":"COUNTA(L124:L124)","v":0},{"$f":"COUNTA(M124:M124)","v":0},{"$f":"COUNTA(N124:N124)","v":0},0,0,0,0,0,0,0,0]
[null,null,null,null,null,null,null,null,null,null,null,null,null,null,null,null,null,null,0,0,0,0,0,0,0,{"$f":"COUNTIF(P125,\"ح\")","v":0},{"$f":"COUNTIF(Q125,\"ح\")","v":0},{"$f":"COUNTIF(R125,\"ح\")","v":0},0,0,0,0,0,0,0,0,0,0,0,0,0,0,0]
[null,null,null,null,null,null,null,null,null,null,null,null,null,null,null,null,null,null,{"$f":"COUNTIF(I126,\"ح\")","v":0},{"$f":"COUNTIF(J126,\"ح\")","v":0},{"$f":"COUNTIF(K126,\"ح\")","v":0},{"$f":"COUNTIF(L126,\"ح\")","v":0},{"$f":"COUNTIF(M126,\"ح\")","v":0},{"$f":"COUNTIF(N126,\"ح\")","v":0},{"$f":"COUNTIF(O126,\"ح\")","v":0},0,0,0,0,0,0,0,0,0,0,0,0,0,0,0,0,0,0]
[null,null,null,null,null,null,null,null,null,null,null,null,null,null,null,null,null,null,0,0,0,0,0,0,0,0,0,0,0,0,0,0,0,0,0,0,0,0,0,0,0,0,0]
[null,null,null,null,null,null,null,null,null,null,null,null,null,null,null,null,null,null,0,0,0,0,0,0,0,0,0,0,0,0,0,0,0,0,0,0,0,0,0,0,0,0,0]
[null,null,null,null,null,null,null,null,null,null,null,null,null,null,null,null,null,null,0,0,0,0,0,0,0,0,0,0,0,0,0,0,0,0,0,0,0,0,0,0,0,0,0]
[null,null,null,null,null,null,null,null,null,null,null,null,null,null,null,null,null,null,0,0,0,0,0,0,0,0,0,0,0,0,0,0,0,0,0,0,0,0,0,0,0,0,0]
[null,null,null,null,null,null,null,null,null,null,null,null,null,null,null,null,null,null,0,0,0,0,0,0,0,0,0,0,0,0,0,0,0,0,0,0,0,0,0,0,0,0,0]
[null,null,null,null,null,null,null,null,null,null,null,null,null,null,null,null,null,null,0,0,0,0,0,0,0,0,0,0,0,0,0,0,0,0,0,0,0,0,0,0,0,0,0]
[null,null,null,null,null,null,null,null,null,null,null,null,null,null,null,null,null,null,0,0,0,0,0,0,0,0,0,0,0,0,0,0,0,0,0,0,0,0,0,0,0,0,0]
[null,null,null,null,null,null,null,null,null,null,null,null,null,null,null,null,null,null,0,0,0,0,0,0,0,0,0,0,0,0,0,0,0,0,0,0,0,0,0,0,0,0,0]
[null,null,null,null,null,null,null,null,null,null,null,null,null,null,null,null,null,null,0,0,0,0,0,0,0,0,0,0,0,0,0,0,0,0,0,0,0,0,0,0,0,0,0]

{"sheet":"Feuil3","index":3,"n_rows":70,"n_cols":44,"rows_kept":70,"cut":false,"hidden":false,"merged":[[0,0,0,7],[0,11,0,18],[0,42,1,42],[0,43,2,43],[1,0,1,3],[1,5,1,7],[1,10,1,14],[1,16,1,19],[1,35,1,37],[2,0,2,2],[2,3,2,5],[2,7,2,8],[2,10,2,12],[2,13,2,16],[2,33,2,34],[2,42,3,42],[3,0,3,2],[3,3,3,4],[3,7,3,8],[3,10,3,12],[3,13,3,15],[3,30,3,32],[5,2,5,3],[5,13,5,14],[5,18,5,19],[5,32,5,33],[7,2,7,3],[7,4,7,5],[7,6,7,7],[7,13,7,15],[7,17,7,19],[7,32,7,33],[7,35,7,36],[8,32,8,33],[9,32,9,33],[9,35,9,36],[10,32,10,33],[10,35,10,36],[11,32,11,33],[11,35,11,36],[12,32,12,33],[12,35,12,36],[13,32,13,33],[13,35,13,36],[14,32,14,33],[14,35,14,36],[15,32,15,33],[15,35,15,36],[16,32,16,33],[16,35,16,36],[17,32,17,33],[17,35,17,36],[18,12,18,16],[18,17,18,19],[19,12,19,16],[19,17,19,19],[20,12,20,16],[22,18,22,19],[32,1,32,5],[32,6,32,7],[33,1,33,5],[33,6,33,7],[20,2,20,3],[20,4,20,5],[20,6,20,7],[21,2,21,3],[21,4,21,5],[21,6,21,7],[22,2,22,3],[22,4,22,5],[22,6,22,7],[23,2,23,3],[23,4,23,5],[23,6,23,7],[24,2,24,3],[24,4,24,5],[34,1,34,5],[36,6,36,7],[37,0,37,7],[37,11,37,19],[38,0,38,3],[38,5,38,7],[38,10,38,14],[38,16,38,19],[39,0,39,1],[39,2,39,4],[39,10,39,12],[39,13,39,16],[40,0,40,2],[40,3,40,4],[40,10,40,12],[40,13,40,15],[42,18,42,19],[43,2,43,3],[43,5,43,7],[43,12,43,13],[43,14,43,15],[43,16,43,17],[43,18,43,19],[44,2,44,3],[44,5,44,7],[44,12,44,13],[44,14,44,15],[44,16,44,17],[44,18,44,19],[45,2,45,3],[45,5,45,7],[45,12,45,13],[45,14,45,15],[45,16,45,17],[45,18,45,19],[46,2,46,3],[46,5,46,7],[46,12,46,13],[46,14,46,15],[46,16,46,17],[46,18,46,19],[47,2,47,3],[47,5,47,7],[47,12,47,13],[47,14,47,15],[47,16,47,17],[47,18,47,19],[48,2,48,3],[48,5,48,7],[48,12,48,13],[48,14,48,15],[48,16,48,17],[48,18,48,19],[49,2,49,3],[49,5,49,7],[49,12,49,13],[49,14,49,15],[49,16,49,17],[49,18,49,19],[50,2,50,3],[50,5,50,7],[50,12,50,13],[50,14,50,15],[50,16,50,17],[50,18,50,19],[51,2,51,3],[51,5,51,7],[51,12,51,13],[51,14,51,15],[51,16,51,17],[51,18,51,19],[52,2,52,3],[52,5,52,7],[52,12,52,13],[52,14,52,15],[52,16,52,17],[52,18,52,19],[53,2,53,3],[53,5,53,7],[53,12,53,13],[53,14,53,15],[53,16,53,17],[53,18,53,19],[54,2,54,3],[54,5,54,7],[54,12,54,13],[54,14,54,15],[54,16,54,17],[54,18,54,19],[55,2,55,3],[55,5,55,7],[55,12,55,13],[55,14,55,15],[55,16,55,17],[55,18,55,19],[56,2,56,3],[56,5,56,7],[56,12,56,13],[56,14,56,15],[56,16,56,17],[56,18,56,19],[57,2,57,3],[57,5,57,7],[57,12,57,13],[57,14,57,15],[57,16,57,17],[57,18,57,19],[58,2,58,3],[58,5,58,7],[58,12,58,13],[58,14,58,15],[58,16,58,17],[58,18,58,19],[59,2,59,3],[59,5,59,7],[59,12,59,13],[59,14,59,15],[59,16,59,17],[59,18,59,19],[60,2,60,3],[60,5,60,7],[60,12,60,13],[60,14,60,15],[60,16,60,17],[60,18,60,19],[61,2,61,3],[61,5,61,7],[61,12,61,13],[61,14,61,15],[61,16,61,17],[61,18,61,19],[62,2,62,3],[62,5,62,7],[62,12,62,13],[62,14,62,15],[62,16,62,17],[62,18,62,19],[63,2,63,3],[63,5,63,7],[63,12,63,13],[63,14,63,15],[63,16,63,17],[63,18,63,19],[64,2,64,3],[64,5,64,7],[64,12,64,13],[64,14,64,15],[64,16,64,17],[64,18,64,19],[65,2,65,3],[65,5,65,7],[65,12,65,13],[65,14,65,15],[65,16,65,17],[65,18,65,19],[69,18,69,20],[66,6,66,7],[66,12,66,16],[66,18,66,19],[67,6,67,7],[67,12,67,16],[67,18,67,19],[8,2,8,3],[8,4,8,5],[8,6,8,7],[9,2,9,3],[9,4,9,5],[9,6,9,7],[10,2,10,3],[10,4,10,5],[10,6,10,7],[11,2,11,3],[11,4,11,5],[11,6,11,7],[12,2,12,3],[12,4,12,5],[12,6,12,7],[13,2,13,3],[13,4,13,5],[13,6,13,7],[14,2,14,3],[14,4,14,5],[14,6,14,7],[15,2,15,3],[15,4,15,5],[15,6,15,7],[16,2,16,3],[16,4,16,5],[16,6,16,7],[26,6,26,7],[27,2,27,3],[27,4,27,5],[27,6,27,7],[17,2,17,3],[17,4,17,5],[17,6,17,7],[18,2,18,3],[18,4,18,5],[18,6,18,7],[19,2,19,3],[19,4,19,5],[19,6,19,7],[31,2,31,3],[31,4,31,5],[31,6,31,7],[8,13,8,15],[9,13,9,15],[10,13,10,15],[11,13,11,15],[12,13,12,15],[13,13,13,15],[28,2,28,3],[28,4,28,5],[28,6,28,7],[29,2,29,3],[29,4,29,5],[29,6,29,7],[30,2,30,3],[30,4,30,5],[30,6,30,7],[24,6,24,7],[25,2,25,3],[25,4,25,5],[25,6,25,7],[26,2,26,3],[26,4,26,5],[17,17,17,19],[14,13,14,15],[15,13,15,15],[16,13,16,15],[17,13,17,15],[8,17,8,19],[9,17,9,19],[10,17,10,19],[11,17,11,19],[12,17,12,19],[13,17,13,19],[14,17,14,19],[15,17,15,19],[16,17,16,19]]}
["الجمهوريــة الجزائريــة الديمقراطيــة الشعبيــة",null,null,null,null,null,null,null,null,null,null,"الجمهوريــة الجزائريــة الديمقراطيــة الشعبيــة",null,null,null,null,null,null,null,null,null,null,null,null,null,null,null,null,null,null,null,null,null,null,null,null,null,null,null,null,null,null,{"$f":"VLOOKUP(AR1,ROZ,3,0)","v":"2019-06-18"},5]
["وزارة التربيــة الوطنيــــة",null,null,null,null,"الديـوان الوطـني للامتحانات والمسابقات",null,null,null,null,"وزارة التربيــة الوطنيــــة",null,null,null,null,null,"الديوان الوطني للامتحانات والمسابقات"]
["مـركــــز الإجـــــــراء:",null,null,{"$error":"#REF!"},null,null,"الرمز:",{"$error":"#REF!"},null,null,"مركز الإجراء:",null,null,{"$f":"$D$3","v":{"$error":"#REF!"}},null,null,null,null,"الرمز",{"$f":"$H$3","v":{"$error":"#REF!"}},null,null,null,null,null,null,null,null,null,null,null,null,null,null,null,null,null,null,null,null,null,null,{"$f":"VLOOKUP(AR1,ROZ,6,0)","v":"الصباحية "}]
[" امتحـان شهــادة:",null,null,{"$error":"#REF!"},null,null,"دورة:",{"$error":"#REF!"},null,null,"امتحان شهادة:",null,null,{"$f":"$D$4","v":{"$error":"#REF!"}},null,null,null,null,"دورة:",{"$f":"$H$4","v":{"$error":"#REF!"}}]
[]
[null,"ليـوم:",{"$f":"AQ1","v":"2019-06-18"},null,null,null,"الفترة :",{"$f":"AQ3","v":"الصباحية "},null,null,null,null,"ليـوم:",{"$f":"$C$6","v":"2019-06-18"},null,null,null,"الفتـرة:",{"$f":"AQ3","v":"الصباحية "},null,null,null,null,null,null,null,null,null,null,null,null,"ليوم:",{"$f":"C6","v":"2019-06-18"},null,null,null,{"$f":"G6&\" \"&H6","v":"الفترة : الصباحية "}]
[null,null,null,null,null,null,null,null,null,null,null,null,null,"ح",null,null,null,null,null,null,null,null,null,null,null,null,null,null,null,null,null,null,"ح"]
[null,"الحجرة ","الحـــارس(ة) الأول",null,"الحـارس(ة) الثانــي",null,"الحــارس(ة) الثالـث",null,null,null,null,null,"الرقم","لـقـــب واســــم الحارس(ة) ",null,null,"الرقم","لـقـــب واســــم الحارس(ة) ",null,null,null,null,null,null,null,null,null,null,null,null,null,"الرقم","لقب واسم الحارس(ة) ",null,"الرقم","لقب واسم الحارس(ة) "]
["ر1",1,null,null,{"$error":"#REF!"},null,{"$error":"#REF!"},null,null,null,null,null,1,null,null,null,11,null,null,null,null,null,null,null,null,null,null,null,null,null,null,1,{"$error":"#NAME?"},null,18,{"$error":"#NAME?"}]
["ر2",2,null,null,{"$error":"#REF!"},null,{"$error":"#REF!"},null,null,null,null,null,2,null,null,null,12,null,null,null,null,null,null,null,null,null,null,null,null,null,null,2,{"$error":"#NAME?"},null,19,{"$error":"#NAME?"}]
["ر3",3,null,null,{"$error":"#REF!"},null,{"$error":"#REF!"},null,null,null,null,null,3,null,null,null,13,null,null,null,null,null,null,null,null,null,null,null,null,null,null,3,{"$error":"#NAME?"},null,13,{"$error":"#NAME?"}]
["ر4",4,null,null,{"$error":"#REF!"},null,{"$error":"#REF!"},null,null,null,null,null,4,null,null,null,14,null,null,null,null,null,null,null,null,null,null,null,null,null,null,4,{"$error":"#NAME?"},null,14,{"$error":"#NAME?"}]
["ر5",5,null,null,{"$error":"#REF!"},null,{"$error":"#REF!"},null,null,null,null,null,5,null,null,null,15,null,null,null,null,null,null,null,null,null,null,null,null,null,null,5,{"$error":"#NAME?"},null,15,{"$error":"#NAME?"}]
["ر6",6,null,null,{"$error":"#REF!"},null,{"$error":"#REF!"},null,null,null,null,null,6,null,null,null,16,null,null,null,null,null,null,null,null,null,null,null,null,null,-1,6,{"$error":"#NAME?"},null,16,{"$error":"#NAME?"}]
["ر7",7,null,null,{"$error":"#REF!"},null,{"$error":"#REF!"},null,null,null,null,null,7,null,null,null,17,null,null,null,null,null,null,null,null,null,null,null,null,null,-2,7,{"$error":"#NAME?"},null,17,{"$error":"#NAME?"}]
["ر8",8,null,null,{"$error":"#REF!"},null,{"$error":"#REF!"},null,null,null,null,null,8,null,null,null,18,null,null,null,null,null,null,null,null,null,null,null,null,null,null,8,{"$error":"#NAME?"},null,18,{"$error":"#NAME?"}]
["ر9",9,null,null,{"$error":"#REF!"},null,{"$error":"#REF!"},null,null,null,null,null,9,null,null,null,19,null,null,null,null,null,null,null,null,null,null,null,null,null,null,9,{"$error":"#NAME?"},null,19,{"$error":"#NAME?"}]
["ر10",10,null,null,{"$error":"#REF!"},null,{"$error":"#REF!"},null,null,null,null,null,10,null,null,null,20,null,null,null,null,null,null,null,null,null,null,null,null,null,null,10,{"$error":"#NAME?"},null,20,{"$error":"#NAME?"}]
["ر11",11,null,null,{"$error":"#REF!"},null,{"$error":"#REF!"},null,null,null,null,-1,"كل حراس  الفترة الصباحية معنيون بحراسة الفترة المسائية.",null,null,null,null,"لقب واسم رئيس(ة) المركز",null,null,null,null,null,null,null,null,null,null,null,null,null,1,{"$error":"#NAME?"},null,23,{"$error":"#NAME?"}]
["ر12",12,null,null,{"$error":"#REF!"},null,{"$error":"#REF!"},null,null,null,null,-2,"الحراس الإحتياطيون لا يمكنهم مغادرة المركز إلا بعد ",null,null,null,null,"الختم والإمضاء",null,null,null,null,null,null,null,null,null,null,null,null,null,2,{"$error":"#NAME?"},null,24,{"$error":"#NAME?"}]
["ر13",13,null,null,{"$error":"#REF!"},null,{"$error":"#REF!"},null,null,null,null,null,"التوقيع على ورقة الحضور.",null,null,null,null,null,null,null,null,null,null,null,null,null,null,null,null,null,null,3,{"$error":"#NAME?"},null,25,{"$error":"#NAME?"}]
["ر14",14,null,null,{"$error":"#REF!"},null,{"$error":"#REF!"},null,null,null,null,null,null,null,null,null,null,null,null,null,null,null,null,null,null,null,null,null,null,null,null,4,{"$error":"#NAME?"},null,26,{"$error":"#NAME?"}]
["ر15",15,null,null,{"$error":"#REF!"},null,{"$error":"#REF!"},null,null,null,null,null,null,null,null,null,null,null,{"$f":"$G$37","v":{"$error":"#REF!"}},null,null,null,null,null,null,null,null,null,null,null,null,5,{"$error":"#NAME?"},null,27,{"$error":"#NAME?"}]
["ر16",16,null,null,{"$error":"#REF!"},null,{"$error":"#REF!"},null,null,null,null,null,null,null,null,null,null,null,null,null,null,null,null,null,null,null,null,null,null,null,null,6,{"$error":"#NAME?"},null,28,{"$error":"#NAME?"}]
["ر17",17,null,null,{"$error":"#REF!"},null,{"$error":"#REF!"},null,null,null,null,null,null,null,null,null,null,null,null,null,null,null,null,null,null,null,null,null,null,null,null,7,{"$error":"#NAME?"},null,29,{"$error":"#NAME?"}]
["ر18",18,null,null,{"$error":"#REF!"},null,{"$error":"#REF!"},null,null,null,null,null,null,null,null,null,null,null,null,null,null,null,null,null,null,null,null,null,null,null,null,8,{"$error":"#NAME?"},null,30,{"$error":"#NAME?"}]
["ر19",19,null,null,{"$error":"#REF!"},null,{"$error":"#REF!"},null,null,null,null,null,null,null,null,null,null,null,null,null,null,null,null,null,null,null,null,null,null,null,null,9,{"$error":"#NAME?"},null,31,{"$error":"#NAME?"}]
["ر20",20,null,null,{"$error":"#REF!"},null,{"$error":"#REF!"},null,null,null,null,null,null,null,null,null,null,null,null,null,null,null,null,null,null,null,null,null,null,null,null,10,{"$error":"#NAME?"},null,32,{"$error":"#NAME?"}]
["ر21",21,null,null,{"$error":"#REF!"},null,{"$error":"#REF!"},null,null,null,null,null,null,null,null,null,null,null,null,null,null,null,null,null,null,null,null,null,null,null,null,11,{"$error":"#NAME?"},null,33,{"$error":"#NAME?"}]
["ر22",22,null,null,{"$error":"#REF!"},null,{"$error":"#REF!"},null,null,null,null,null,null,null,null,null,null,null,null,null,null,null,null,null,null,null,null,null,null,null,null,12,{"$error":"#NAME?"},null,34,{"$error":"#NAME?"}]
["ر23",23,null,null,{"$error":"#REF!"},null,{"$error":"#REF!"},null,null,null,null,null,null,null,null,null,null,null,null,null,null,null,null,null,null,null,null,null,null,null,null,13,{"$error":"#NAME?"},null,35,{"$error":"#NAME?"}]
["ر24",24,null,null,{"$error":"#REF!"},null,{"$error":"#REF!"},null,null,null,null,null,null,null,null,null,null,null,null,null,null,null,null,null,null,null,null,null,null,null,null,14,{"$error":"#NAME?"},null,36,{"$error":"#NAME?"}]
[-1,"  الحارس الرئيسي مسؤول  عن استلام ملف القاعة  من أمانة المركز .",null,null,null,null,"لقب واسم رئيس(ة) المركز",null,null,null,null,null,null,null,null,null,null,null,null,null,null,null,null,null,null,null,null,null,null,null,null,15,{"$error":"#NAME?"},null,37,{"$error":"#NAME?"}]
[-2,"  الحراس الإحتياطيون لا يمكنهم مغادرة المركز إلا بعد التوقيع على ورقة الحضور.",null,null,null,null,"الختــــم والإمـضـــــــــاء",null,null,null,null,null,null,null,null,null,null,null,null,null,null,null,null,null,null,null,null,null,null,null,null,16,{"$error":"#NAME?"},null,38,{"$error":"#NAME?"}]
[-3,"كل حراس  الفترة الصباحية معنيون بحراسة الفترة المسائية.",null,null,null,null,null,null,null,null,null,null,null,null,null,null,null,null,null,null,null,null,null,null,null,null,null,null,null,null,null,17,{"$error":"#NAME?"},null,39,{"$error":"#NAME?"}]
[null,null,null,null,null,null,null,null,null,null,null,null,null,null,null,null,null,null,null,null,null,null,null,null,null,null,null,null,null,null,null,18,{"$error":"#NAME?"},null,40,{"$error":"#NAME?"}]
[null,null,null,null,null,null,{"$error":"#REF!"},null,null,null,null,null,null,null,null,null,null,null,null,null,null,null,null,null,null,null,null,null,null,null,null,19,{"$error":"#NAME?"},null,41,{"$error":"#NAME?"}]
["الجمهوريــة الجزائريــة الديمقراطيــة الشعبيــة",null,null,null,null,null,null,null,null,null,null,"الجمهوريــة الجزائريــة الديمقراطيــة الشعبيــة",null,null,null,null,null,null,null,null,null,null,null,null,null,null,null,null,null,null,null,20,{"$error":"#NAME?"},null,42,{"$error":"#NAME?"}]
["وزارة التربيــة الوطنيــــة",null,null,null,null,"الديـوان الوطـني للامتحانات والمسابقات",null,null,null,null,"وزارة التربيــة الوطنيــــة",null,null,null,null,null,"الديوان الوطني للامتحانات والمسابقات",null,null,null,null,null,null,null,null,null,null,null,null,null,null,21,{"$error":"#NAME?"},null,43,{"$error":"#NAME?"}]
["مركز الإجراء:",null,{"$error":"#REF!"},null,null,null,"الرمز:",{"$error":"#REF!"},null,null,"مركز الإجراء:",null,null,{"$f":"$D$3","v":{"$error":"#REF!"}},null,null,null,null,"الرمز",{"$f":"$H$3","v":{"$error":"#REF!"}},null,null,null,null,null,null,null,null,null,null,null,22,{"$error":"#NAME?"},null,44,{"$error":"#NAME?"}]
["امتحـان شهــادة:",null,null,{"$error":"#REF!"},null,null,"دورة:",{"$error":"#REF!"},null,null,"امتحان شهادة:",null,null,{"$f":"$D$4","v":{"$error":"#REF!"}},null,null,null,"دورة:",{"$f":"$H$41","v":{"$error":"#REF!"}}]
[]
[null,null,null,null,null,null,null,null,null,null,null,2,null,null,null,null,null,"لـيـوم: ",{"$error":"#N/A"}]
[1,"الرقم","اللقب والاسم",null,"الرقم","اللـقـــب والاســــم ",null,null,null,null,null,3,"اللقب والاسم",null,"اللقب والاسم",null,"اللقب والاسم",null,"اللقب والاسم"]
[2,1,{"$error":"#NAME?"},null,23,{"$error":"#NAME?"},null,null,null,null,null,1,{"$error":"#NAME?"},null,{"$error":"#NAME?"},null,{"$error":"#NAME?"},null,{"$error":"#NAME?"}]
[3,2,{"$error":"#NAME?"},null,24,{"$error":"#NAME?"},null,null,null,null,null,2,{"$error":"#NAME?"},null,{"$error":"#NAME?"},null,{"$error":"#NAME?"},null,{"$error":"#NAME?"}]
[4,3,{"$error":"#NAME?"},null,25,{"$error":"#NAME?"},null,null,null,null,null,3,{"$error":"#NAME?"},null,{"$error":"#NAME?"},null,{"$error":"#NAME?"},null,{"$error":"#NAME?"}]
[5,4,{"$error":"#NAME?"},null,26,{"$error":"#NAME?"},null,null,null,null,null,4,{"$error":"#NAME?"},null,{"$error":"#NAME?"},null,{"$error":"#NAME?"},null,{"$error":"#NAME?"}]
[6,5,{"$error":"#NAME?"},null,27,{"$error":"#NAME?"},null,null,null,null,null,5,{"$error":"#NAME?"},null,{"$error":"#NAME?"},null,{"$error":"#NAME?"},null,{"$error":"#NAME?"}]
[7,6,{"$error":"#NAME?"},null,28,{"$error":"#NAME?"},null,null,null,null,null,6,{"$error":"#NAME?"},null,{"$error":"#NAME?"},null,{"$error":"#NAME?"},null,{"$error":"#NAME?"}]
[8,7,{"$error":"#NAME?"},null,29,{"$error":"#NAME?"},null,null,null,null,null,7,{"$error":"#NAME?"},null,{"$error":"#NAME?"},null,{"$error":"#NAME?"},null,{"$error":"#NAME?"}]
[9,8,{"$error":"#NAME?"},null,30,{"$error":"#NAME?"},null,null,null,null,null,8,{"$error":"#NAME?"},null,{"$error":"#NAME?"},null,{"$error":"#NAME?"},null,{"$error":"#NAME?"}]
[10,9,{"$error":"#NAME?"},null,31,{"$error":"#NAME?"},null,null,null,null,null,9,{"$error":"#NAME?"},null,{"$error":"#NAME?"},null,{"$error":"#NAME?"},null,{"$error":"#NAME?"}]
[11,10,{"$error":"#NAME?"},null,32,{"$error":"#NAME?"},null,null,null,null,null,10,{"$error":"#NAME?"},null,{"$error":"#NAME?"},null,{"$error":"#NAME?"},null,{"$error":"#NAME?"}]
[12,11,{"$error":"#NAME?"},null,33,{"$error":"#NAME?"},null,null,null,null,null,11,{"$error":"#NAME?"},null,{"$error":"#NAME?"},null,{"$error":"#NAME?"},null,{"$error":"#NAME?"}]
[13,12,{"$error":"#NAME?"},null,34,{"$error":"#NAME?"},null,null,null,null,null,12,{"$error":"#NAME?"},null,{"$error":"#NAME?"},null,{"$error":"#NAME?"},null,{"$error":"#NAME?"}]
[14,13,{"$error":"#NAME?"},null,35,{"$error":"#NAME?"},null,null,null,null,null,13,{"$error":"#NAME?"},null,{"$error":"#NAME?"},null,{"$error":"#NAME?"},null,{"$error":"#NAME?"}]
[15,14,{"$error":"#NAME?"},null,36,{"$error":"#NAME?"},null,null,null,null,null,14,{"$error":"#NAME?"},null,{"$error":"#NAME?"},null,{"$error":"#NAME?"},null,{"$error":"#NAME?"}]
[16,15,{"$error":"#NAME?"},null,37,{"$error":"#NAME?"},null,null,null,null,null,15,{"$error":"#NAME?"},null,{"$error":"#NAME?"},null,{"$error":"#NAME?"},null,{"$error":"#NAME?"}]
[17,16,{"$error":"#NAME?"},null,38,{"$error":"#NAME?"},null,null,null,null,null,16,{"$error":"#NAME?"},null,{"$error":"#NAME?"},null,{"$error":"#NAME?"},null,{"$error":"#NAME?"}]
[18,17,{"$error":"#NAME?"},null,39,{"$error":"#NAME?"},null,null,null,null,null,17,{"$error":"#NAME?"},null,{"$error":"#NAME?"},null,{"$error":"#NAME?"},null,{"$error":"#NAME?"}]
[19,18,{"$error":"#NAME?"},null,40,{"$error":"#NAME?"},null,null,null,null,null,18,{"$error":"#NAME?"},null,{"$error":"#NAME?"},null,{"$error":"#NAME?"},null,{"$error":"#NAME?"}]
[20,19,{"$error":"#NAME?"},null,41,{"$error":"#NAME?"},null,null,null,null,null,19,{"$error":"#NAME?"},null,{"$error":"#NAME?"},null,{"$error":"#NAME?"},null,{"$error":"#NAME?"}]
[21,20,{"$error":"#NAME?"},null,42,{"$error":"#NAME?"},null,null,null,null,null,20,{"$error":"#NAME?"},null,{"$error":"#NAME?"},null,{"$error":"#NAME?"},null,{"$error":"#NAME?"}]
[22,21,{"$error":"#NAME?"},null,43,{"$error":"#NAME?"},null,null,null,null,null,21,{"$error":"#NAME?"},null,{"$error":"#NAME?"},null,{"$error":"#NAME?"},null,{"$error":"#NAME?"}]
[23,22,{"$error":"#NAME?"},null,44,{"$error":"#NAME?"},null,null,null,null,null,22,{"$error":"#NAME?"},null,{"$error":"#NAME?"},null,{"$error":"#NAME?"},null,{"$error":"#NAME?"}]
[24,null,null,null,null,null,"لقب واسم رئيس(ة) المركز",null,null,null,null,"*","على الأساتذة المعنيون بالحراسة الحضور إلى المركز",null,null,null,null,null,"لقب واسم رئيس(ة) المركز"]
[25,null,null,null,null,null,"الختم والإمضاء",null,null,null,null,27,"قبل 30دقيقة من انطلاق الاختبار قي اليوم المحدد.",null,null,null,null,null,"الختم والإمضاء"]
[26]
[27,null,null,null,null,null,null,{"$f":"$G$37","v":{"$error":"#REF!"}},null,null,null,null,null,null,null,null,null,null,{"$f":"$G$37","v":{"$error":"#REF!"}}]

{"sheet":"Feuil4","index":4,"n_rows":0,"n_cols":0,"rows_kept":0,"cut":false,"hidden":false,"merged":[]}

{"sheet":"salim","index":5,"n_rows":0,"n_cols":0,"rows_kept":0,"cut":false,"hidden":true,"merged":[]}